Cogmind - Beta 9.6 @@@ ROGUE MODE // 2020.09.08 @ 04:44:48 Player: Calanor Result: Destroyed by S-10 Pest with Light Assault Rifle Performance ------------- Evolutions (0) 0 Regions Visited (1) 200 Robots Destroyed (18) 90 Value Destroyed (344) 344 Prototype IDs (2) 40 Alien Tech Used (0) 0 Bonus (0) 0 TOTAL SCORE: 674 Bonus ------- None Cogmind --------- Core Integrity 0/250 Matter 295/300 Energy 99/100 System Corruption 0% Temperature Cool (0) Movement Rolling (100) Location -10/Materials Parts ------- > --- POWER (1) -------- (None) > --- PROPULSION (2) --- Compact Wheel > --- UTILITY (2) ------ Small Storage Unit > --- WEAPON (2) ------- (None) > --- INVENTORY (6) ---- Ion Engine Compact Wheel Peak State ------------ > --- POWER ------------ Light Ion Engine > --- PROPULSION ------- Wheel Compact Wheel > --- UTILITY ---------- Small Storage Unit Small Storage Unit > --- WEAPON ----------- Assault Rifle Assault Rifle > --- INVENTORY -------- Ion Engine Light Ion Engine Compact Wheel Light Assault Rifle [Rating: 7] Favorites ----------- Power Light Ion Engine Engine Light Ion Engine Propulsion Compact Wheel Wheel Compact Wheel Utility Small Storage Unit Device Tractor Beam Storage Small Storage Unit Weapon Assault Rifle Energy Gun Small Laser Ballistic Gun Assault Rifle Launcher Grenade Launcher Build | -11 -10 ------- Run | Scr Mat Slots Evolved . | . . Power . | . . Propulsion . | . . Utility . | . . Weapon . | . . Parts Attached 16 | 8 8 Power 3 | 2 1 Engine 3 | 2 1 Core . | . . Reactor . | . . Propulsion 4 | 2 2 Treads . | . . Leg . | . . Wheel 4 | 2 2 Hover . | . . Flight . | . . Utility 4 | 2 2 Device 1 | . 1 Storage 3 | 2 1 Processor . | . . Hackware . | . . Protection . | . . Artifact . | . . Weapon 5 | 2 3 Energy Gun 1 | . 1 Energy Cannon . | . . Ballistic Gun 3 | 2 1 Ballistic Cannon . | . . Launcher 1 | . 1 Special Weapon . | . . Impact Weapon . | . . Slashing Weapon . | . . Piercing Weapon . | . . Special Melee Weapon . | . . Unidentified Prototypes . | . . Parts Lost 10 | . 10 Power 2 | . 2 Propulsion 2 | . 2 Utility 1 | . 1 Weapon 5 | . 5 Highest Loss Streak 8 | . 8 Average Slot Usage (%) 83 | . 83 Engine 7 | . 7 Wheel 24 | . 24 Device 3 | . 3 Storage 22 | . 22 Ballistic Gun 23 | . 23 Launcher 1 | . 1 Naked Turns . | . . Heaviest Build 17 | 15 17 Greatest Support 32 | 26 32 Greatest Overweight (x) . | . . Average Overweight (x) . | . . Largest Inventory Capacity 8 | 8 8 Average Capacity 6 | 5 7 Most Carried 8 | 4 8 Average Carried 4 | 2 4 Final Capacity 8 | 8 6 Final Carried 4 | 4 2 Class Distribution -------------------- 100% | Mutant Dominant Class ---------------- Mutant | -10/Materials Resources | -11 -10 ----------- Run | Scr Mat Matter Collected 724 | 304 420 Remotely 97 | . 97 Salvage Created 897 | 108 789 Parts 46 | 6 40 Haulers Intercepted 1 | . 1 Recyclers Shooed 5 | . 5 Parts Field Recycled . | . . Retrieved Matter . | . . Parts Self-Destructed . | . . Prevented . | . . Kills | -11 -10 ------- Run | Scr Mat Combat Hostiles Destroyed 9 | . 9 Guns 9 | . 9 Classes Destroyed 6 | 2 4 Builder 2 | . 2 Tunneler 1 | 1 . Hauler 1 | . 1 Recycler 5 | 1 4 Swarmer 1 | . 1 Grunt 8 | . 8 Best Kill Streak 4 | 2 4 Combat Bots Only 2 | . 2 Max Kills in Single Turn 2 | 1 2 Gunslinging 1 | . 1 Exploded . | . . Melee . | . . Uniques/NPCs Destroyed . | . . Combat | -11 -10 -------- Run | Scr Mat Damage Taken 944 | . 944 Core 252 | . 252 Absorbed by Shields . | . . Core Remaining (%) 100 | 100 . Volleys Fired 87 | 4 83 Largest 2 | 2 2 Hottest 40 | 40 40 Shots Fired 144 | 8 136 Gun 144 | 8 136 Cannon . | . . Launcher . | . . Special . | . . Kinetic 144 | 8 136 Thermal . | . . Explosive . | . . Electromagnetic . | . . Robot Hit Streak 8 | 1 8 Robot Miss Streak 4 | 1 4 Penetration Max . | . . Secondary Targets 2 | . 2 Max Gunslinging Chain 1 | . 1 Shots Hit Robots 72 | 3 69 Core Hits 31 | 3 28 Critical Hits 1 | . 1 Critical Kills . | . . Critical Parts Destroyed 1 | . 1 Melee Attacks . | . . Impact . | . . Slashing . | . . Piercing . | . . Sneak Attacks . | . . Combat Hostiles . | . . Follow-up Attacks . | . . Damage Inflicted 1049 | 69 980 Guns 1049 | 69 980 Cannons . | . . Explosions . | . . Melee . | . . Ramming . | . . Kinetic 1049 | 69 980 Thermal . | . . Explosive . | . . Electromagnetic . | . . Impact . | . . Slashing . | . . Piercing . | . . Highest Corruption . | . . Average Corruption . | . . Corruption Purged . | . . Overload Shots . | . . Overflow Damage . | . . Projectiles . | . . Explosions . | . . Melee . | . . Knockbacks . | . . Impact . | . . Kinetic . | . . Secondary . | . . Self-Inflicted Damage . | . . Shots . | . . Rammed . | . . Targets Rammed . | . . Kicked . | . . Crushed . | . . Highest Temperature 12 | . 12 Average Temperature 4 | . 4 Received Heat Transfer 300 | . 300 Siege Activations . | . . Robots Corrupted . | . . Combat Hostiles . | . . Parts Fried . | . . Impact Corruptions . | . . Robots Melted . | . . Combat Hostiles . | . . Parts Melted . | . . Heat Transferred . | . . Parts Sabotaged . | . . Parts Stolen . | . . Parts Stripped . | . . Power Chain Reactions . | . . Missiles Intercepted . | . . Alert | -11 -10 ------- Run | Scr Mat Peak Influence 233 | 10 233 Average Influence 106 | 3 126 Maximum Alert Level 1 | . 1 Low Security (%) 86 | 100 84 Level 1 13 | . 15 Level 2 . | . . Level 3 . | . . Level 4 . | . . Level 5 . | . . High Security . | . . Max Security . | . . Squads Dispatched 2 | . 2 Investigation 1 | . 1 Extermination . | . . Reinforcement 1 | . 1 Assault . | . . Garrison . | . . Intercept . | . . Construction Impeded . | . . Haulers Reinforced . | . . Stealth | -11 -10 --------- Run | Scr Mat Distress Signals 2 | . 2 Communications Jammed . | . . Distress Signals . | . . Times Spotted 14 | . 14 Peak Tracking Total 4 | . 4 Tactical Retreats . | . . Traps | -11 -10 ------- Run | Scr Mat Traps Triggered . | . . Indirectly . | . . Trap Hack Attempts . | . . Triggered . | . . Disarmed . | . . Reprogrammed . | . . Reused . | . . Traps Extracted . | . . Installed . | . . Triggered . | . . Machines | -11 -10 ---------- Run | Scr Mat Machines Disabled . | . . Max in Single Turn . | . . Machines Sabotaged . | . . Garrisons Compromised . | . . Overloaded Fab Kills . | . . Fab Network Shutdowns . | . . Hacking | -11 -10 --------- Run | Scr Mat Machines Accessed 1 | . 1 Terminals 1 | . 1 Fabricators . | . . Repair Stations . | . . Recycling Units . | . . Scanalyzers . | . . Garrison Access . | . . Total Hacks 4 | . 4 Successful 3 | . 3 Failed 1 | . 1 Catastrophic . | . . Database Lockouts . | . . Manual . | . . Terminals 4 | . 4 Fabricators . | . . Repair Stations . | . . Recycling Units . | . . Scanalyzers . | . . Garrison Access . | . . Terminal Hacks 3 | . 3 Robot Analysis 1 | . 1 Prototype ID Bank 1 | . 1 Transport Status 1 | . 1 Fabricator Hacks . | . . Repair Station Hacks . | . . Recycling Unit Hacks . | . . Scanalyzer . | . . Garrison Access Hacks . | . . Unauthorized Hacks . | . . Terminals . | . . Fabricators . | . . Repair Stations . | . . Recycling Units . | . . Scanalyzers . | . . Garrison Access . | . . Data Cores Recovered . | . . Used . | . . Hacking Detections 1 | . 1 Full Trace Events 1 | . 1 Feedback Events . | . . Feedback Blocked . | . . Robot Schematics Acquired . | . . Robots Built . | . . Matter . | . . Time . | . . Total Robot Build Rating . | . . Part Schematics Acquired . | . . Parts Built . | . . Matter . | . . Time . | . . Total Part Build Rating . | . . Parts Repaired . | . . Time . | . . Parts Recycled . | . . Recycled Matter . | . . Retrieved Matter . | . . Retrieved Components . | . . Parts Scanalyzed . | . . Part Schematics Acquired . | . . Parts Damaged . | . . Bothacking | -11 -10 ------------ Run | Scr Mat Used RIF Installer . | . . Robots Hacked . | . . Non-combat . | . . Combat . | . . Robot Hacks Applied . | . . Relay Couplers Released . | . . Robots Rewired . | . . Allies Hacked . | . . Hacks Repelled . | . . Allies | -11 -10 -------- Run | Scr Mat Total Allies . | . . Largest Group . | . . Highest-Rated Group . | . . Highest-Rated Ally . | . . Total Orders . | . . Ally Attacks . | . . Total Damage . | . . Kills . | . . Allies Corrupted . | . . Allies Melted . | . . Intel | -11 -10 ------- Run | Scr Mat Robot Analysis Total 1 | . 1 Derelict Logs Recovered . | . . Drone Launches . | . . Drone Recoveries . | . . Exploration | -11 -10 ------------- Run | Scr Mat Turns Passed 492 | 81 411 Spaces Moved 227 | 58 169 Core 5 | 5 . Treads . | . . Legs . | . . Wheels 222 | 53 169 Hover . | . . Flight . | . . Fastest Speed 50 | 50 90 Average Speed 93 | 86 95 Slowest Speed 100 | 90 100 Overloaded Moves . | . . Propulsion Burnouts . | . . Robots Hopped . | . . Cave-ins Triggered . | . . Exploration Rate (%) 15 | 4 26 Regions Visited 1 Branch Regions . Pre-discovered Areas . | . . Known Exits Taken . | . . Unknown Exits Taken 1 | 1 . Scrap Searched . | . . Spaces Dug . | . . Terrain Destroyed . | . . Melee . | . . Projectile . | . . AOE . | . . Actions | -11 -10 --------- Run | Scr Mat Total 367 | 79 288 Wait 13 | . 13 Move 226 | 57 169 Hop . | . . Pick Up 18 | 10 8 Fast Attach 1 | 1 . Attach 12 | 6 6 Detach . | . . Swap 3 | 1 2 Drop 7 | . 7 Fire 87 | 4 83 Melee . | . . Ram . | . . Kick . | . . Crush . | . . Escape Stasis . | . . Rewire . | . . Trap . | . . Miscellaneous . | . . Route ------- -11/Scrapyard -10/Materials (discovered 1 exit: [*Mat]) History --------- Turn | Location | Event 14 | -11/Scrapyard | Discovered new exit (range 15) 82 | -11/Scrapyard | Entered Materials 351 | -10/Materials | Build established: Mutant 414 | -10/Materials | Core integrity fell below 50% 477 | -10/Materials | Core integrity fell below 20% 488 | -10/Materials | Discovered new exit (range 13) 493 | -10/Materials | Destroyed by S-10 Pest with Light Assault Rifle Last Messages --------------- Com. Wheel destroyed. Acquired 3 matter. K-01 Serf collects debris. G-47 Trooper destroyed. Acquired 3 matter. K-01 Serf cleans the Material Compactor. Acquired 3 matter. Tractor Beam destroyed. Critical hit. Assault Rifle destroyed. Ion Engine destroyed. K-01 Serf collects debris. Grenade Launcher destroyed. K-01 Serf collects debris. Lgt. Assault Rifle destroyed. K-01 Serf collects debris. Acquired 23 matter. Acquired Sml. Laser. Sml. Laser destroyed. EXIT=FOUND Map ----- +----------------------------------------------------+ | ?????????????????# #?????# #????? | | ?????????????????# #?????# #????? | | ?????????????????# #?????# #????? | | ?????????????????# #?????# #????? | | ?????????????????# #?????# #????? | | ?????????????????# #?????# #????? | | ?????????????????# ####### #????? | | ?????????????????# ##"""## #????? | | ???????????????### ##"Y"##^^^#????? | | ???????????????# ##" "## ###### | | ??????????T????# !* | | ?????????? ????# *=!* | | ?????????? ????# !%% = | | ?????????? ????# *= | | ?????????? ????# | | ?????????? ????# ! """ ##### | | ?????????? ????# !%=""""" #???? | | ???????### ###?# *!""""" #???? | | ???????# #?# !%"""""% #???? | | ???????# #?# = """ #???? | | ???????+ #?# = #???? | | ???????# #?# *%! #???? | | ???????? ??# %########[###???? | | ????????# #??# %=#??????#%#?????? | | ????????# #??# !#??#####/####### | | ????????# @ #??# #??# [!=!%!!!# | | ????????# #??# #??# """!!=/ | | ????????# #??# #??# """""= # | | ????????# #??# #??# """"" # | | ????????# s#### #??# """"" !# | | ????????# s #??# """ ?? | | ????????# #??# ?? | | ????????# #??########????? | | ????????+ ########??????????????? | | ????????# #?????????????????????? | | ????????# #?????????????????????? | | ????????# #?????????????????????? | | ????????# #?????????????????????? | | ????????# #?????????????????????? | | ????????# #?????????????????????? | | ????????# #?????????????????????? | | ????????# ??????????????????????? | | ????????# < ??????????????????????? | | ????????# ??????????????????????? | | ????????####??????????????????????? | | ??????????????????????????????????? | | ??????????????????????????????????? | | ??????????????????????????????????? | | ??????????????????????????????????? | | ??????????????????????????????????? | +----------------------------------------------------+ Best States ------------- Heat Dissipation 25 Energy Generation 10 Energy Capacity 250 Matter Stores 300 Matter Capacity 300 Sight Range 16 Terrain Scan Density 10 Evasion (%) 42 Item Schematics ----------------- None Robot Schematics ------------------ None Fabricated ------------ Nothing Alien Tech Used ----------------- None Achievements -------------- None Challenges ------------ None Game ------ Seed MyomerThrusterSystem Manual? 0 Play Time 00:13:52 Cumulative 8.9 hours Start 2020.09.08 @ 04:32:01 End 2020.09.08 @ 04:44:48 Sessions 1 Manual Loads 0 Difficulty Rogue Special Mode None Game No. 11 Rogue 11 Adventurer 0 Explorer 0 Win Type - Total 0 Types 0/0/0/0/0/0/0 Lore% 13 Gallery% 9 Achievement% 8 Wizard Run 0 Options --------- ASCII 0 Keyboard 0 Movement Numpad Keybinds 0 Fullscreen 1 Font 24/Terminus Map View 76x50 Tactical HUD 0 Map Filters NONE Filters NONE Steam 1 RUN: 79bc9fcd-d224-435c-a87c-4d98965f6a77